[Event "84th Armenian-HL-ch 2024"]
[Site "Yerevan"]
[Date "2024.01.14"]
[Round "3.2"]
[White "Davtyan, Artur"]
[Black "Gharibyan, Mamikon"]
[Result "1/2-1/2"]
[ECO "D35"]
[WhiteElo "2477"]
[BlackElo "2504"]
[Annotator "RC"]
[PlyCount "52"]
[EventDate "2024.01.11"]
[EventType "tourn"]
[EventCountry "ARM"]
[SourceTitle "playchess.com"]
[Source "ChessBase"]
[SourceQuality "1"]
[TimeControl "40/5400+30:1800+30"]

1. d4 {[%emt 0:00:36]} d5 {[%emt 0:00:24]} 2. c4 {[%emt 0:00:12]} e6 {[%emt 0:00:06]} 3. Nc3 {[%emt 0:00:04]} Nf6 {[%emt 0:00:06]} 4. cxd5 {[%emt 0:00:04]} exd5 {[%emt 0:00:06]} 5. Bg5 {[%emt 0:00:03]} Be7 {[%emt 0:00:10]} 6. e3 {[%emt 0:00:46]} O-O {[%emt 0:00:36]} 7. Bd3 {[%emt 0:00:46]} Re8 {[%emt 0:00:28]} 8. Nf3 {[%emt 0:04:37]} h6 {[%emt 0:00:27]} 9. Bf4 {[%emt 0:00:22]} c5 {[%emt 0:00:49]} 10. dxc5 {[%emt 0:01:06]} Bxc5 {[%emt 0:00:23]} 11. O-O {[%emt 0:00:15]} Nc6 {[%emt 0:00:26]} 12. h3 {[%emt 0:00:14]} a6 {[%emt 0:00:54]} 13. Rc1 {[%emt 0:00:33]} Ba7 {[%emt 0:00:39]} 14. Bb1 {[%emt 0:21:14]} d4 {[%emt 0:07:29]} 15. exd4 {[%emt 0:00:25]} Nxd4 {[%emt 0:00:47]} 16. Nxd4 {[%emt 0:01:05]} Bxd4 {[%emt 0:15:33]} 17. Qa4 {[%emt 0:26:04]} Bxc3 {[%emt 0:19:29]} 18. Rxc3 {[%emt 0:01:31]} Bd7 {[%emt 0:01:01]} 19. Qc2 {[%emt 0:01:08]} Bc6 {[%emt 0:02:43]} 20. Rg3 {[%emt 0:17:57]} Be4 {[%emt 0:08:50]} 21. Qb3 {[%emt 0:00:10]} Nh5 {[%emt 0:07:40]} 22. Rg4 {[%emt 0:00:41]} Bxb1 {[%emt 0:02:08]} 23. Rxb1 {[%emt 0:00:06]} Nxf4 {[%emt 0:01:11]} 24. Rxf4 {[%emt 0:00:04]} Qe7 {[%emt 0:01:31]} 25. Rb4 {[%emt 0:00:08]} b5 {[%emt 0:00:49]} 26. a4 {[%emt 0:00:06]} bxa4 {[%emt 0:00:35]} 1/2-1/2

[Event "84th Armenian-HL-ch 2024"]
[Site "Yerevan"]
[Date "2024.01.14"]
[Round "3.3"]
[White "Hovhannisyan, Robert"]
[Black "Andriasian, Zaven"]
[Result "1/2-1/2"]
[ECO "B92"]
[WhiteElo "2611"]
[BlackElo "2581"]
[Annotator "RC"]
[PlyCount "52"]
[EventDate "2024.01.11"]
[EventType "tourn"]
[EventCountry "ARM"]
[SourceTitle "playchess.com"]
[Source "ChessBase"]
[SourceQuality "1"]
[TimeControl "40/5400+30:1800+30"]

1. e4 {[%emt 0:00:03]} c5 {[%emt 0:00:08]} 2. Nf3 {[%emt 0:00:10]} d6 {[%emt 0:00:08]} 3. d4 {[%emt 0:00:04]} cxd4 {[%emt 0:00:07]} 4. Nxd4 {[%emt 0:00:05]} Nf6 {[%emt 0:00:09]} 5. Nc3 {[%emt 0:00:05]} a6 {[%emt 0:00:07]} 6. Be2 {[%emt 0:00:20]} e5 {[%emt 0:00:13]} 7. Nb3 {[%emt 0:00:06]} Be7 {[%emt 0:00:13]} 8. Be3 {[%emt 0:00:11]} Be6 {[%emt 0:00:38]} 9. O-O {[%emt 0:00:13]} O-O {[%emt 0:00:25]} 10. Qd3 {[%emt 0:00:05]} Nbd7 {[%emt 0:00:15]} 11. a4 {[%emt 0:00:25]} Rc8 {[%emt 0:04:14]} 12. a5 {[%emt 0:00:26]} Qc7 {[%emt 0:02:41]} 13. Rfd1 {[%emt 0:00:35]} Rfd8 {[%emt 0:05:23]} 14. Bf3 {[%emt 0:00:26]} h6 {[%emt 0:07:25]} 15. h3 {[%emt 0:07:37]} Bf8 {[%emt 0:08:23]} 16. Nd2 {[%emt 0:09:19]} Qc6 {[%emt 0:14:29]} 17. Nf1 {[%emt 0:02:41]} g6 {[%emt 0:04:35]} 18. Qe2 {[%emt 0:18:07]} Kh7 {[%emt 0:01:31]} 19. Rd2 {[%emt 0:02:57]} Re8 {[%emt 0:03:00]} 20. Qd1 {[%emt 0:02:46]} Qc7 {[%emt 0:01:00]} 21. Be2 {[%emt 0:09:36]} Qb8 {[%emt 0:06:41]} 22. Ra4 {[%emt 0:08:44]} h5 {[%emt 0:01:44]} 23. Nd5 {[%emt 0:06:08]} Bxd5 {[%emt 0:08:52]} 24. exd5 {[%emt 0:00:04]} Bh6 {[%emt 0:00:23]} 25. Bxh6 {[%emt 0:05:50]} Kxh6 {[%emt 0:00:09]} 26. c4 {[%emt 0:06:18]} b6 {[%emt 0:04:51]} 1/2-1/2

[Event "84th Armenian-HL-ch 2024"]
[Site "Yerevan"]
[Date "2024.01.14"]
[Round "3.4"]
[White "Ter-Sahakyan, Samvel"]
[Black "Chaqryan, Erik"]
[Result "1-0"]
[ECO "D38"]
[WhiteElo "2649"]
[BlackElo "2308"]
[Annotator "TA"]
[PlyCount "97"]
[EventDate "2024.01.11"]
[EventType "tourn"]
[EventCountry "ARM"]
[SourceTitle "playchess.com"]
[Source "ChessBase"]
[SourceQuality "1"]
[TimeControl "40/5400+30:1800+30"]

{[%evp 11,97,16,5,-1,16,12,14,12,16,4,8,27,42,18,24,12,8,6,8,0,0,0,0,-16,6,0,0,-5,0,-4,7,0,0,7,3,0,0,-11,0,-1,0,0,0,0,31,25,22,22,29,22,93,77,107,106,114,113,136,116,118,106,168,166,224,214,185,135,229,224,289,307,278,295,307,256,257,250,255,253,313,311,325,338,477,478,473,457,420,424]} 1. d4 {[%emt 0:00:06]} Nf6 {[%emt 0:00:24]} 2. c4 {[%emt 0:00:10]} e6 {[%emt 0:00:42]} 3. Nc3 {[%emt 0:00:14]} Bb4 {[%emt 0:00:48]} 4. Nf3 {[%emt 0:01:25]} d5 {[%emt 0:03:11]} 5. Qa4+ {[%emt 0:04:46]} Nc6 {[%emt 0:00:08]} 6. e3 {[%emt 0:00:23]} O-O {[%emt 0:00:27]} 7. Qc2 {[%emt 0:00:21] D38: Queen's Gambit Declined: Ragozin Defence (4 Nf3 Bb4).} Re8 {[%emt 0:00:44]} 8. Bd2 {[%emt 0:04:07]} Bf8 {[%emt 0:00:46]} 9. Be2 {[%emt 0:00:51] The position is equal.} Nb4 {[%emt 0:03:13]} 10. Qb1 {[%emt 0:00:12]} dxc4 {[%emt 0:02:50]} 11. Bxc4 {[%emt 0:00:06]} b6 {[%emt 0:03:08]} 12. a3 {[%emt 0:00:22]} Ba6 {[%emt 0:00:28]} 13. Be2 {[%emt 0:00:12]} Bxe2 {[%emt 0:01:00]} 14. Nxe2 {[%emt 0:00:09]} Na6 {[%emt 0:03:51]} 15. e4 {[%emt 0:05:09]} c5 {[%emt 0:10:52]} 16. e5 {[%emt 0:08:29] [#] Qd3 would be deadly.} Nd5 {[%emt 0:00:12]} 17. Qd3 {[%emt 0:04:15]} Nac7 {[%emt 0:04:01] [#]} 18. h4 $146 {[%emt 0:14:04]} ({Predecessor:} 18. O-O h6 19. Rac1 Qd7 20. g4 Qb5 21. Rc4 Ne7 22. Ng3 cxd4 23. g5 Rec8 24. gxh6 gxh6 25. a4 Qxb2 26. Rc2 {1-0 Ohanyan,E (2444)-Rios,C (2469) Sharjah Challengers 6th 2023 (7)}) 18... Qd7 {[%emt 0:23:32]} 19. Rc1 {[%emt 0:03:03]} cxd4 {[%emt 0:04:26]} 20. Nexd4 {[%emt 0:05:53]} Bc5 {[%emt 0:04:36]} 21. Nb3 {[%emt 0:04:44]} Bf8 $1 {[%emt 0:03:25]} 22. h5 {[%emt 0:10:12] Black is weak on the dark squares} h6 {[%emt 0:02:44]} 23. Rh4 {[%emt 0:00:35]} a5 {[%emt 0:02:49]} 24. Nbd4 {[%emt 0:10:54]} Na6 {[%emt 0:04:21]} 25. Qb5 {[%emt 0:02:05]} Red8 {[%emt 0:03:58]} 26. Qxd7 {[%emt 0:03:11]} Rxd7 {[%emt 0:00:04]} 27. Ke2 {[%emt 0:00:47]} Rc7 {[%emt 0:03:29]} 28. Rxc7 {[%emt 0:01:41]} Naxc7 {[%emt 0:01:25]} 29. Rh1 {[%emt 0:00:16]} a4 {[%emt 0:05:41]} 30. Rc1 {[%emt 0:01:39]} b5 {[%emt 0:05:30] [#]} (30... Bc5 $11 {keeps the balance.}) 31. Ne1 $1 $16 {[%emt 0:02:17] White leaves nothing to chance now.} Rb8 {[%emt 0:01:13]} 32. Nd3 {[%emt 0:01:09]} Rb7 {[%emt 0:01:13]} 33. f4 {[%emt 0:04:15] White has more active pieces.} Be7 {[%emt 0:00:35]} 34. Ba5 {[%emt 0:01:54]} Kh7 {[%emt 0:00:58]} 35. g3 {[%emt 0:03:04][%cal Bg2g3,Bg3g4][%mdl 32]} Kg8 {[%emt 0:00:06]} (35... Na6 $16 {was necessary.}) 36. Kf3 $18 {[%emt 0:01:10]} Kf8 {[%emt 0:00:05]} (36... Bf8 $142 37. g4 Na6) 37. g4 {[%emt 0:00:20]} Ke8 {[%emt 0:00:03]} 38. f5 {[%emt 0:00:39]} (38. Ke4 $18) 38... Kd7 {[%emt 0:00:07]} (38... b4 $16) 39. Ke4 {[%emt 0:01:26]} Ra7 {[%emt 0:00:43]} 40. Nc6 {[%emt 0:00:00]} Rb7 {[%emt 0:00:00]} 41. Nxe7 {[%emt 0:07:19]} Kxe7 {[%emt 0:00:23]} 42. Rc6 {[%emt 0:04:35] Dodges b4} Ra7 {[%emt 0:02:23]} 43. Be1 {[%emt 0:01:02]} Ra6 {[%emt 0:00:39]} 44. Rc1 {[%emt 0:02:14]} Ra7 {[%emt 0:05:28]} 45. Bf2 {[%emt 0:03:09]} Ra8 {[%emt 0:02:14]} 46. Bc5+ {[%emt 0:02:20]} Kd7 {[%emt 0:02:32]} (46... Ke8 $142 47. Bd6 Na6 48. fxe6 fxe6) 47. Bd6 {[%emt 0:01:20] And now fxe6+ would win.} Na6 {[%emt 0:00:20]} 48. fxe6+ {[%emt 0:02:48]} fxe6 {[%emt 0:03:00]} 49. Rf1 {[%emt 0:00:08] Weighted Error Value: White=0.04 (flawless) /Black=0.19 (very precise)} 1-0

[Event "84th Armenian-HL-ch 2024"]
[Site "Yerevan"]
[Date "2024.01.14"]
[Round "3.5"]
[White "Tiraturyan, David"]
[Black "Petrosyan, Manuel"]
[Result "1-0"]
[ECO "A37"]
[WhiteElo "2258"]
[BlackElo "2627"]
[Annotator "RC"]
[PlyCount "137"]
[EventDate "2024.01.11"]
[EventType "tourn"]
[EventCountry "ARM"]
[SourceTitle "playchess.com"]
[Source "ChessBase"]
[SourceQuality "1"]
[TimeControl "40/5400+30:1800+30"]

1. c4 {[%emt 0:00:10]} g6 {[%emt 0:08:16]} 2. g3 {[%emt 0:02:38]} Bg7 {[%emt 0:00:53]} 3. Bg2 {[%emt 0:00:08]} c5 {[%emt 0:02:10]} 4. Nc3 {[%emt 0:03:18]} Nc6 {[%emt 0:00:37]} 5. Nf3 {[%emt 0:00:41]} d6 {[%emt 0:02:18]} 6. d3 {[%emt 0:02:17]} Qd7 {[%emt 0:04:38]} 7. O-O {[%emt 0:06:30]} b6 {[%emt 0:01:53]} 8. e3 {[%emt 0:11:21]} Bxc3 {[%emt 0:02:03]} 9. bxc3 {[%emt 0:00:13]} Bb7 {[%emt 0:08:47]} 10. e4 {[%emt 0:04:02]} f5 {[%emt 0:07:49]} 11. d4 {[%emt 0:11:39]} Na5 {[%emt 0:10:40]} 12. d5 {[%emt 0:06:09]} Nf6 {[%emt 0:10:36]} 13. exf5 {[%emt 0:04:44]} Qxf5 {[%emt 0:03:48]} 14. Ng5 {[%emt 0:03:41]} Qg4 {[%emt 0:00:31]} 15. Qe1 {[%emt 0:06:07]} Qxc4 {[%emt 0:01:42]} 16. Nf7 {[%emt 0:01:15]} O-O {[%emt 0:15:50]} 17. Nh6+ {[%emt 0:00:25]} Kh8 {[%emt 0:01:31]} 18. Qxe7 {[%emt 0:00:16]} Bxd5 {[%emt 0:05:19]} 19. Bg5 {[%emt 0:04:52]} Nh5 {[%emt 0:02:42]} 20. Qxd6 {[%emt 0:08:04]} Bxg2 {[%emt 0:00:10]} 21. Kxg2 {[%emt 0:02:09]} Qe4+ {[%emt 0:00:40]} 22. f3 {[%emt 0:03:01]} Qc2+ {[%emt 0:00:27]} 23. Rf2 {[%emt 0:00:59]} Qxc3 {[%emt 0:00:21]} 24. Rc1 {[%emt 0:00:33]} Qd4 {[%emt 0:02:23]} 25. Qxd4+ {[%emt 0:01:21]} cxd4 {[%emt 0:00:01]} 26. Rc7 {[%emt 0:00:06]} Ng7 {[%emt 0:02:17]} 27. Re2 {[%emt 0:02:35]} Rac8 {[%emt 0:01:55]} 28. Rxa7 {[%emt 0:03:25]} Nf5 {[%emt 0:01:00]} 29. Ng4 {[%emt 0:01:34]} Nc4 {[%emt 0:01:27]} 30. Nf6 {[%emt 0:03:33]} Nce3+ {[%emt 0:00:28]} 31. Rxe3 {[%emt 0:02:22]} Nxe3+ {[%emt 0:00:05]} 32. Kh3 {[%emt 0:00:49]} Rxf6 {[%emt 0:00:11]} 33. Bxf6+ {[%emt 0:00:04]} Kg8 {[%emt 0:00:03]} 34. Bxd4 {[%emt 0:00:14]} Nf5 {[%emt 0:00:54]} 35. Bxb6 {[%emt 0:00:25]} Rc6 {[%emt 0:00:26]} 36. Bc7 {[%emt 0:03:40]} Rc3 {[%emt 0:00:08]} 37. Kg4 {[%emt 0:00:50]} Ne3+ {[%emt 0:00:19]} 38. Kh3 {[%emt 0:00:35]} Nf5 {[%emt 0:00:37]} 39. f4 {[%emt 0:00:14]} h5 {[%emt 0:00:27]} 40. Be5 {[%emt 0:00:00]} Rd3 {[%emt 0:00:00]} 41. Bf6 {[%emt 0:02:04]} Rd6 {[%emt 0:04:33]} 42. Bg5 {[%emt 0:04:09]} Rd2 {[%emt 0:00:42]} 43. a4 {[%emt 0:02:17]} Ra2 {[%emt 0:00:41]} 44. Bf6 {[%emt 0:00:28]} Nd6 {[%emt 0:03:36]} 45. Be5 {[%emt 0:02:56]} Nf7 {[%emt 0:08:49]} 46. Ra8+ {[%emt 0:06:08]} Kh7 {[%emt 0:00:04]} 47. Bf6 {[%emt 0:00:05]} g5 {[%emt 0:08:11]} 48. fxg5 {[%emt 0:00:04]} Kg6 {[%emt 0:00:28]} 49. Ra5 {[%emt 0:04:32]} Nd6 {[%emt 0:01:13]} 50. Bd8 {[%emt 0:00:48]} Ne4 {[%emt 0:02:04]} 51. Ra6+ {[%emt 0:00:30]} Kg7 {[%emt 0:04:42]} 52. a5 {[%emt 0:00:41]} Nf2+ {[%emt 0:02:40]} 53. Kh4 {[%emt 0:01:49]} Ne4 {[%emt 0:00:02]} 54. Kxh5 {[%emt 0:00:41]} Rxh2+ {[%emt 0:00:06]} 55. Kg4 {[%emt 0:00:02]} Ra2 {[%emt 0:00:08]} 56. Bf6+ {[%emt 0:00:33]} Nxf6+ {[%emt 0:02:20]} 57. gxf6+ {[%emt 0:00:03]} Kg6 {[%emt 0:00:05]} 58. Kf4 {[%emt 0:00:43]} Rf2+ {[%emt 0:00:05]} 59. Ke4 {[%emt 0:01:01]} Re2+ {[%emt 0:01:03]} 60. Kd5 {[%emt 0:01:02]} Ra2 {[%emt 0:01:30]} 61. Ke6 {[%emt 0:00:10]} Re2+ {[%emt 0:00:24]} 62. Kd7 {[%emt 0:00:05]} Re5 {[%emt 0:00:06]} 63. g4 {[%emt 0:02:10]} Kf7 {[%emt 0:00:01]} 64. Kc7 {[%emt 0:02:18]} Kg6 {[%emt 0:00:53]} 65. Ra8 {[%emt 0:00:37]} Kxf6 {[%emt 0:00:14]} 66. Rf8+ {[%emt 0:00:35]} Kg7 {[%emt 0:01:53]} 67. Rf5 {[%emt 0:00:04]} Re7+ {[%emt 0:00:26]} 68. Kc6 {[%emt 0:00:41]} Re6+ {[%emt 0:00:05]} 69. Kb5 {[%emt 0:00:06]} 1-0

[Event "84th Armenian-HL-ch 2024"]
[Site "Yerevan"]
[Date "2024.01.15"]
[Round "4.1"]
[White "Petrosyan, Manuel"]
[Black "Davtyan, Artur"]
[Result "1-0"]
[ECO "B52"]
[WhiteElo "2627"]
[BlackElo "2477"]
[Annotator "TA"]
[PlyCount "53"]
[EventDate "2024.01.11"]
[EventType "tourn"]
[EventCountry "ARM"]
[SourceTitle "playchess.com"]
[Source "ChessBase"]
[SourceQuality "1"]
[TimeControl "40/5400+30:1800+30"]

{[%evp 15,53,11,8,6,14,4,35,10,51,61,62,55,55,58,65,0,153,46,38,33,20,0,314,215,460,460,443,425,463,443,405,389,758,748,1008,1001,5414,5406,5506,5489]} 1. e4 {[%emt 0:01:15]} c5 {[%emt 0:00:06]} 2. Nf3 {[%emt 0:00:40]} d6 {[%emt 0:00:05]} 3. Bb5+ {[%emt 0:01:04]} Bd7 {[%emt 0:00:05]} 4. Bxd7+ {[%emt 0:02:03]} Qxd7 {[%emt 0:00:24]} 5. O-O {[%emt 0:00:25]} Nc6 {[%emt 0:00:02]} 6. c3 {[%emt 0:01:54]} d5 {[%emt 0:00:06]} 7. exd5 {[%emt 0:10:48]} Qxd5 {[%emt 0:00:03]} 8. d4 {[%emt 0:00:05]} e6 {[%emt 0:00:04]} 9. Qa4 {[%emt 0:13:48] B52: Sicilian: Moscow Variation with 3...Bd7.} cxd4 {[%emt 0:43:49]} 10. Nxd4 {[%emt 0:04:13][%cal Bf3d4,Bd4b5,Bb5c7][%mdl 32] [#]} Qd7 $146 {[%emt 0:01:27]} ({Predecessor:} 10... Nf6 11. Nb5 Rc8 12. Bf4 e5 13. Re1 Nd7 14. Nxa7 Ra8 15. Qb5 Bc5 16. Qxb7 Rxa7 17. Qc8+ Nd8 18. Na3 Ra8 19. Qc7 Ne6 20. Nb5 Nxf4 {0-1 Vandenbussche,T (2432)-Fontaine,Q (2324) BEL-ch Bruges 2021 (3)}) 11. Be3 {[%emt 0:11:12] White is slightly better.} (11. Nxc6 $5 Nf6 12. Nd2 $14) 11... Nge7 {[%emt 0:04:28]} 12. Nb5 {[%emt 0:05:13][%cal Of1d1] Hoping for Rd1!} Nd5 {[%emt 0:00:46]} 13. Rd1 $1 {[%emt 0:02:02] Black must now prevent c4.} Qc8 $1 {[%emt 0:10:57] [#]} 14. Rxd5 $1 {[%emt 0:03:31]} exd5 {[%emt 0:00:03]} 15. Bf4 {[%emt 0:07:56] White is much more active. The black rooks are badly placed.} ({White should play} 15. Qf4 $1 $14) 15... Qg4 $2 {[%emt 0:00:28]} ({Better is} 15... g5 $1 $11 16. Nc7+ (16. Bxg5 a6 $15) 16... Kd8) 16. h3 {[%emt 0:12:22]} (16. Nc7+ $16 Kd7 17. Nxd5 (17. Nxa8 Bd6 $15)) 16... Qe2 $1 $14 {[%emt 0:03:13]} 17. Nc7+ {[%emt 0:01:34]} Kd7 $1 {[%emt 0:15:50] ...Qe1+ would be deadly.} 18. Nxa8 {[%emt 0:01:04] Threatens to win with Na3.} (18. Na3 $5 {[%cal Rc7a8]} Rd8 19. Nxd5 $11) 18... Qe1+ $2 {[%emt 0:11:37]} (18... Bc5 19. Nd2 Rxa8 20. Rf1 $14) (18... Qxb2 $11 {and Black is okay.} 19. Qd1 (19. Qb3 Qxb3 20. axb3 Bd6 $15) 19... Qxa1 20. Qxd5+ Kc8 21. Qf5+ Kd8) 19. Kh2 $18 {[%emt 0:00:05]} Bd6 $2 {[%emt 0:00:02]} (19... Qe4 20. Qxe4 dxe4) 20. Bxd6 {[%emt 0:19:16]} Kxd6 {[%emt 0:06:55] [#]} 21. Na3 $1 {[%emt 0:00:00]} (21. Qf4+ Qe5 22. Qxe5+ Nxe5 $11) 21... Qxa1 {[%emt 0:00:00]} 22. Qf4+ {[%emt 0:01:00]} Ke7 {[%emt 0:01:00][%cal Oa1b2] [#] ...Qxb2! is the strong threat.} (22... Ne5 $2 23. Nb5+ Kc6 24. Qxe5 Rxa8 25. Nd4+ Kd7 26. Qxd5+ (26. Qxg7 Qe1 $16) 26... Ke8 27. Qe5+ Kd7 28. Qd5+ Ke8 29. Qe5+ Kd7 30. Qb5+ Kd8 31. Qd5+ Ke8) 23. Qc7+ $1 {[%emt 0:00:30]} (23. Nc7 Rd8 24. Nc2 Qb1 $17) 23... Kf6 $2 {[%emt 0:00:30]} (23... Ke6 24. Qxb7 Nd8 25. Qa6+ (25. Qxa7 Qe1 $18) (25. Nc7+ Kd7 $18) 25... Ke5 26. Qe2+ (26. Qxa7 Ne6 $18) 26... Kd6 27. Nb5+ Kc6) 24. Qd6+ {[%emt 0:00:30] White is clearly winning.} Kg5 {[%emt 0:00:30]} 25. h4+ {[%emt 0:00:30]} (25. Qxd5+ Kh6 $16) 25... Kxh4 {[%emt 0:00:30]} 26. Qxd5 {[%emt 0:00:30] Threatening mate with g3+.} Qf1 {[%emt 0:00:30] [#]} 27. Qf5 $1 {[%emt 0:00:30] Excellently played by Petrosyan!   Weighted Error Value: White=0.17 (very precise) /Black=0.59} 1-0

[Event "84th Armenian-HL-ch 2024"]
[Site "Yerevan"]
[Date "2024.01.15"]
[Round "4.2"]
[White "Chaqryan, Erik"]
[Black "Andriasian, Zaven"]
[Result "1/2-1/2"]
[ECO "A25"]
[WhiteElo "2308"]
[BlackElo "2581"]
[Annotator "TA"]
[PlyCount "36"]
[EventDate "2024.01.11"]
[EventType "tourn"]
[EventCountry "ARM"]
[SourceTitle "playchess.com"]
[Source "ChessBase"]
[SourceQuality "1"]
[TimeControl "40/5400+30:1800+30"]

{[%evp 10,36,-10,-8,-6,-8,0,-8,-4,-16,17,0,7,0,20,20,6,16,32,35,35,33,44,32,49,47,56,52,72]} 1. c4 {[%emt 0:00:23]} e5 {[%emt 0:00:09]} 2. g3 {[%emt 0:00:15]} Nc6 {[%emt 0:00:56]} 3. Bg2 {[%emt 0:00:18]} Nf6 {[%emt 0:00:44]} 4. Nc3 {[%emt 0:04:08]} Bb4 {[%emt 0:00:25]} 5. e4 {[%emt 0:06:24]} d6 {[%emt 0:01:38]} 6. Nge2 {[%emt 0:00:53]} a5 {[%emt 0:03:50] A25: English Opening vs King's Indian with ...Nc6 but without early d3.} 7. O-O {[%emt 0:04:47]} Be6 {[%emt 0:01:14]} 8. Nd5 {[%emt 0:05:50]} Bc5 {[%emt 0:00:18] The position is equal.} 9. d3 {[%emt 0:00:52] [#]} h6 $146 {[%emt 0:04:17] Wards off Bg5} (9... Bg4 $5 {[%cal Rf6d5]}) ({Predecessor:} 9... Nd4 10. Nxd4 Bxd4 11. Bg5 Bxd5 12. cxd5 O-O 13. Qd2 c5 14. dxc6 bxc6 15. Rac1 c5 {½-½ Georgiev,V (2549)-Klinova,M (2368) Valle d'Aosta op 11th 2003 (6)}) 10. h3 {[%emt 0:04:25]} Nd4 {[%emt 0:03:31]} 11. Be3 {[%emt 0:04:22]} Bxd5 {[%emt 0:03:34]} 12. cxd5 {[%emt 0:01:25]} Nxe2+ {[%emt 0:00:15]} 13. Qxe2 {[%emt 0:00:05]} Bxe3 {[%emt 0:00:43]} 14. Qxe3 {[%emt 0:01:14] White is slightly better.} O-O {[%emt 0:00:41]} 15. d4 {[%emt 0:05:39]} exd4 {[%emt 0:00:20]} 16. Qxd4 {[%emt 0:00:05]} Nd7 {[%emt 0:00:16]} 17. Rac1 {[%emt 0:01:41]} Re8 {[%emt 0:02:22]} 18. f4 {[%emt 0:04:58]} Ra6 {[%emt 0:12:58] Weighted Error Value: White=0.04 (flawless) /Black=0.11 (very precise)} 1/2-1/2